bitfinex/quotes_BTCUSD_20251224
["timestamp","ask_amount","ask_price","bid_price","bid_amount"]
[1766615173772,0.01138537,87832.0,87824.0,0.23915]
[1766615174199,0.01138524,87833.0,87824.0,0.23915]
[1766615175641,0.07971026,87835.0,87824.0,0.23915]
[1766615175642,0.13568,87841.0,87824.0,0.23915]
[1766615175839,0.13568,87841.0,87833.0,0.00055]
[1766615175840,0.0113842,87841.0,87833.0,0.00055]
[1766615176103,0.02278407,87842.0,87833.0,0.00055]
[1766615176272,0.0114,87842.0,87833.0,0.00055]
[1766615176473,0.02278407,87842.0,87831.0,0.23915]
[1766615176675,0.02278407,87842.0,87831.0,0.2505355]
[1766615176833,0.0113842,87841.0,87831.0,0.23915]
[1766615177235,0.01138433,87840.0,87831.0,0.23915]
[1766615177434,0.0113842,87841.0,87831.0,0.23915]
[1766615177834,0.01138433,87840.0,87831.0,0.23915]
[1766615178437,0.02278407,87842.0,87827.0,0.01138602]
[1766615178438,0.0114,87842.0,87837.0,0.01144872]
[1766615178778,0.0114,87842.0,87837.0,6.4e-05]
[1766615178973,0.0114,87842.0,87834.0,0.25053511]
[1766615179138,0.0114,87842.0,87834.0,0.23915]
[1766615182840,0.02278407,87842.0,87834.0,0.23915]
[1766615183047,0.0114,87842.0,87834.0,0.23915]
[1766615184634,0.0114,87842.0,87832.0,0.01138537]
[1766615185077,0.0114,87842.0,87833.0,0.01138524]
[1766615185272,0.0114,87842.0,87834.0,0.01138511]
[1766615185476,0.0114,87842.0,87835.0,0.23915]
[1766615186050,0.0114,87842.0,87833.0,0.01138524]
[1766615186768,0.0114,87842.0,87832.0,0.01138537]
[1766615186967,0.0114,87842.0,87833.0,0.01138524]
[1766615187152,0.0114,87842.0,87832.0,0.01138537]
[1766615189893,0.0114,87842.0,87834.0,0.01138511]
[1766615191103,0.0114,87842.0,87834.0,0.18800511]
[1766615191304,0.0114,87842.0,87834.0,0.17662]
[1766615192639,0.0114,87842.0,87834.0,0.18800511]
[1766615193768,0.0114,87842.0,87831.0,0.0113855]
[1766615193969,0.0114,87842.0,87832.0,0.01138537]
[1766615194379,0.02278407,87842.0,87831.0,0.0113855]
[1766615194584,0.0114,87842.0,87832.0,0.01138537]
[1766615194782,0.0114,87842.0,87833.0,0.01138524]
[1766615194987,0.0114,87842.0,87832.0,0.01138537]
[1766615196070,0.02278407,87842.0,87831.0,0.0113855]
[1766615196271,0.0114,87842.0,87832.0,0.01138537]
[1766615196992,0.01138446,87839.0,87830.0,0.0114]
[1766615197169,0.02278407,87842.0,87820.0,0.17662]
[1766615197170,0.01193463,87830.0,87820.0,0.17662]
[1766615197368,0.01138653,87823.0,87820.0,6.436e-05]
[1766615197569,0.01138666,87822.0,87810.0,0.01138822]
[1766615197795,0.01138705,87819.0,87810.0,9.246e-05]
[1766615197996,0.06832156,87820.0,87810.0,9.246e-05]
[1766615198153,0.01138692,87820.0,87813.0,0.07]
[1766615198574,0.01138679,87821.0,87813.0,0.07]
[1766615198755,0.01138692,87820.0,87813.0,0.07]
[1766615198951,0.0114,87823.0,87813.0,0.07]
[1766615198952,0.0114,87823.0,87820.0,0.00055]
[1766615199155,0.0114,87823.0,87814.0,0.0113877]
[1766615199795,0.0114,87823.0,87816.0,0.01138744]
[1766615199992,0.0114,87823.0,87814.0,0.15362]
[1766615200780,0.02278653,87823.0,87814.0,0.15362]
[1766615200983,0.0114,87823.0,87814.0,0.15362]
[1766615201581,0.03225653,87823.0,87813.0,0.07]
[1766615201796,0.02087,87823.0,87813.0,0.07]
[1766615202014,0.03225653,87823.0,87813.0,0.07]
[1766615202392,0.02087,87823.0,87813.0,0.08138783]
[1766615202597,0.03225653,87823.0,87813.0,0.08138783]
[1766615202792,0.03225653,87823.0,87813.0,0.07]
[1766615203128,0.02087,87823.0,87813.0,0.08138783]
[1766615204036,0.03225653,87823.0,87813.0,0.07]
[1766615204582,0.01138666,87822.0,87813.0,0.07]
[1766615204924,0.03225653,87823.0,87813.0,0.07]
[1766615205112,0.03225653,87823.0,87813.0,0.08138783]
[1766615205312,0.03225653,87823.0,87813.0,0.07]
[1766615205753,0.02087,87823.0,87813.0,0.08138783]
[1766615207863,0.02087,87823.0,87814.0,0.0113877]
[1766615208191,0.0114,87828.0,87823.0,0.00055]
[1766615208380,0.02278589,87828.0,87818.0,0.15362]
[1766615208880,0.000549,87818.0,87813.0,0.0814]
[1766615209179,0.01138666,87822.0,87813.0,0.0814]
[1766615209479,0.01138653,87823.0,87813.0,0.0814]
[1766615209847,0.0113864,87824.0,87813.0,0.0814]
[1766615210078,0.01138653,87823.0,87813.0,0.0814]
[1766615211653,0.01138666,87822.0,87813.0,0.0814]
[1766615211856,0.0113864,87824.0,87813.0,0.0814]
[1766615212702,0.01138653,87823.0,87813.0,0.09278783]
[1766615212900,0.01138653,87823.0,87813.0,0.0814]
[1766615213884,0.0113864,87824.0,87813.0,0.09278783]
[1766615214068,0.01138653,87823.0,87813.0,0.0814]
[1766615214285,0.01138653,87823.0,87813.0,0.09278783]
[1766615214495,0.01138653,87823.0,87813.0,0.0814]
[1766615214695,0.0113864,87824.0,87813.0,0.09278783]
[1766615214874,0.01138653,87823.0,87813.0,0.0814]
[1766615215271,0.01138666,87822.0,87813.0,0.0814]
[1766615215513,0.01138653,87823.0,87813.0,0.0814]
[1766615217421,0.000549,87813.0,87810.0,2.46e-06]
[1766615217917,0.01138731,87817.0,87810.0,2.46e-06]
[1766615218268,0.01138705,87819.0,87810.0,2.46e-06]
[1766615220934,0.01138718,87818.0,87810.0,2.46e-06]
[1766615221556,0.0114,87818.0,87810.0,2.46e-06]
[1766615222746,0.02278718,87818.0,87810.0,2.46e-06]
[1766615222948,0.0114,87818.0,87810.0,2.46e-06]
[1766615224082,0.02278718,87818.0,87810.0,2.46e-06]
[1766615224429,0.01138731,87817.0,87810.0,2.46e-06]
[1766615224637,0.01138744,87816.0,87810.0,2.46e-06]
[1766615227875,0.02278718,87818.0,87810.0,2.46e-06]
[1766615228077,0.0114,87818.0,87810.0,2.46e-06]
[1766615228600,0.02278718,87818.0,87810.0,2.46e-06]
[1766615228798,0.01138744,87816.0,87810.0,2.46e-06]
[1766615228978,0.02278718,87818.0,87810.0,2.46e-06]
[1766615229176,0.0114,87818.0,87810.0,2.46e-06]
[1766615229389,0.02278718,87818.0,87810.0,2.46e-06]
[1766615229560,0.01138731,87817.0,87810.0,2.46e-06]
[1766615229997,0.01138757,87815.0,87810.0,2.46e-06]
[1766615230298,0.01138744,87816.0,87810.0,2.46e-06]
[1766615230765,0.01138757,87815.0,87810.0,2.46e-06]
[1766615231170,0.01138744,87816.0,87810.0,2.46e-06]
[1766615234662,0.06832421,87817.0,87810.0,2.46e-06]
[1766615234848,0.01138744,87816.0,87810.0,2.46e-06]
[1766615236635,0.06832421,87817.0,87810.0,2.46e-06]
[1766615238237,0.01138744,87816.0,87810.0,2.46e-06]
[1766615240672,0.01138757,87815.0,87810.0,2.46e-06]
[1766615240923,0.01138744,87816.0,87810.0,2.46e-06]
[1766615241926,0.01138757,87815.0,87810.0,2.46e-06]
[1766615242534,0.01138744,87816.0,87810.0,2.46e-06]
[1766615244527,0.0114,87818.0,87816.0,0.00055]
[1766615244732,0.27327641,87829.0,87816.0,0.00055]
[1766615244733,0.0114,87817.0,87816.0,0.00055]
[1766615245033,0.0114,87820.0,87813.0,0.13245783]
[1766615245852,0.0114,87820.0,87813.0,0.12107]
[1766615256648,0.000549,87813.0,87810.0,2.46e-06]
[1766615257145,0.01138705,87819.0,87810.0,2.46e-06]
[1766615257822,0.01138744,87816.0,87810.0,2.46e-06]
[1766615258020,0.01138731,87817.0,87810.0,2.46e-06]
[1766615258197,0.01138718,87818.0,87810.0,2.46e-06]
[1766615258598,0.01138731,87817.0,87810.0,2.46e-06]
[1766615259809,0.01138718,87818.0,87810.0,2.46e-06]
[1766615262270,0.06832271,87819.0,87810.0,2.46e-06]
[1766615262436,0.01138718,87818.0,87810.0,2.46e-06]
[1766615268996,0.01138731,87817.0,87806.0,0.00975785]
[1766615269197,0.02278692,87820.0,87807.0,0.01138861]
[1766615269198,0.0114,87820.0,87807.0,0.01138861]
[1766615269537,0.02278692,87820.0,87808.0,0.01138848]
[1766615269830,0.01138705,87819.0,87808.0,0.01138848]
[1766615272234,0.01138718,87818.0,87807.0,0.01138861]
[1766615272636,0.01138705,87819.0,87807.0,0.01138861]
[1766615272637,0.01138705,87819.0,87808.0,0.01138848]
[1766615273049,0.02278692,87820.0,87808.0,0.01138848]
[1766615273656,0.01138718,87818.0,87807.0,0.01138861]
[1766615274316,0.01138705,87819.0,87808.0,0.01138848]
[1766615274661,0.01138718,87818.0,87807.0,0.01138861]
[1766615274850,0.01138705,87819.0,87808.0,0.01138848]
[1766615275055,0.01138718,87818.0,87807.0,0.01138861]
[1766615275217,0.01138705,87819.0,87808.0,0.01138848]
[1766615275596,0.01138718,87818.0,87807.0,0.01138861]
[1766615276455,0.01138705,87819.0,87808.0,0.01138848]
[1766615277048,0.01138718,87818.0,87807.0,0.01138861]
[1766615277735,0.01138705,87819.0,87808.0,0.01138848]
[1766615278024,0.01138718,87818.0,87808.0,0.01138848]
[1766615281103,0.01138718,87818.0,87807.0,0.01138861]
[1766615281314,0.01138718,87818.0,87808.0,0.01138848]
[1766615282049,0.01138718,87818.0,87806.0,6.434e-05]
[1766615282050,0.01138757,87815.0,87806.0,6.434e-05]
[1766615282275,0.01138718,87818.0,87806.0,0.11435434]
[1766615282478,0.01138718,87818.0,87808.0,0.11429]
[1766615282698,0.01138705,87819.0,87808.0,0.11429]
[1766615283100,0.01138705,87819.0,87808.0,0.12567848]
[1766615283305,0.01138705,87819.0,87808.0,0.11429]
[1766615283806,0.01138718,87818.0,87808.0,0.11429]
[1766615284006,0.01138705,87819.0,87808.0,0.12567848]
[1766615284568,0.01138718,87818.0,87808.0,0.11429]
[1766615285802,0.01138705,87819.0,87808.0,0.12567848]
[1766615286700,0.01138718,87818.0,87808.0,0.11429]
[1766615286918,0.01138705,87819.0,87808.0,0.12567848]
[1766615287254,0.01138705,87819.0,87808.0,0.11429]
[1766615287472,0.01138718,87818.0,87808.0,0.11429]
[1766615287701,0.01138705,87819.0,87808.0,0.12567848]
[1766615287906,0.01138718,87818.0,87808.0,0.11429]
[1766615288100,0.01138705,87819.0,87808.0,0.12567848]
[1766615288294,0.01138718,87818.0,87808.0,0.12567848]
[1766615288494,0.01138718,87818.0,87808.0,0.11429]
[1766615288751,0.01138705,87819.0,87808.0,0.11429]
[1766615290731,0.01138705,87819.0,87808.0,0.12567848]
[1766615291029,0.02278692,87820.0,87809.0,0.01138835]
[1766615291231,0.02278692,87820.0,87808.0,0.12567848]
[1766615291655,0.01138718,87818.0,87808.0,0.11429]
[1766615291796,0.01138705,87819.0,87808.0,0.12567848]
[1766615292177,0.01138705,87819.0,87810.0,0.11429]
[1766615292381,0.02278692,87820.0,87810.0,0.11429]
[1766615292620,0.01138705,87819.0,87810.0,0.11429]
[1766615292824,0.01138718,87818.0,87810.0,0.11429]
[1766615292997,0.01138705,87819.0,87810.0,0.11429]
[1766615293200,0.01138718,87818.0,87810.0,0.11429]
[1766615293625,0.01138705,87819.0,87810.0,0.11429]
[1766615294036,0.01138718,87818.0,87810.0,0.11429]
[1766615294667,0.01138705,87819.0,87810.0,0.11429]
[1766615295034,0.02278692,87820.0,87810.0,0.11429]
[1766615296229,0.01138705,87819.0,87810.0,0.11429]
[1766615296547,0.02278692,87820.0,87810.0,0.11429]
[1766615297304,0.01138705,87819.0,87810.0,0.11429]
[1766615297501,0.02278692,87820.0,87810.0,0.11429]
[1766615298686,0.01138705,87819.0,87810.0,0.11429]
[1766615300320,0.0114,87820.0,87810.0,0.12567822]
[1766615302044,0.02278692,87820.0,87810.0,0.11429]
[1766615302753,0.0114,87820.0,87810.0,0.12567822]
[1766615303134,0.02278692,87820.0,87810.0,0.12567822]
[1766615303494,0.0114,87820.0,87810.0,0.11429]
[1766615303814,0.0114,87820.0,87810.0,0.12567822]
[1766615304251,0.0114,87820.0,87810.0,0.11429]
[1766615304546,0.0114,87820.0,87810.0,0.12567822]
[1766615307963,0.02278692,87820.0,87810.0,0.11429]
[1766615308119,0.0114,87820.0,87810.0,0.12567822]
[1766615308714,0.0114,87820.0,87810.0,0.01138822]
[1766615309140,0.01138731,87817.0,87808.0,0.0114]
[1766615309339,0.01138718,87818.0,87808.0,0.0114]
[1766615309705,0.01138731,87817.0,87808.0,0.0114]
[1766615310139,0.01138718,87818.0,87808.0,0.0114]
[1766615312373,0.02278692,87820.0,87808.0,0.02278848]
[1766615312578,0.0114,87820.0,87810.0,0.01138822]
[1766615312900,0.0114,87820.0,87811.0,0.01138809]
[1766615313025,0.0114,87820.0,87812.0,0.01138796]
[1766615313675,0.0114,87820.0,87811.0,0.01138809]
[1766615314381,0.0114,87820.0,87809.0,0.01138835]
[1766615316055,0.02278692,87820.0,87809.0,0.01138835]
[1766615318962,0.0114,87820.0,87811.0,0.12404]
[1766615319189,0.0114,87820.0,87813.0,0.12404]
[1766615334962,0.0114,87820.0,87813.0,0.13542783]
[1766615335573,0.0114,87820.0,87813.0,0.12404]
[1766615336593,0.0114,87820.0,87811.0,0.01138809]
[1766615336796,0.0114,87820.0,87812.0,0.01138796]
[1766615337222,0.0114,87820.0,87811.0,0.01138809]
[1766615338976,0.0114,87820.0,87810.0,0.01138822]
[1766615339213,0.0114,87820.0,87811.0,0.01138809]
[1766615340252,0.01085,87820.0,87812.0,0.01138796]
[1766615340455,0.01085,87820.0,87814.0,0.0113877]
[1766615341307,0.01085,87820.0,87812.0,0.13144796]
[1766615341950,0.01085,87820.0,87814.0,0.0113877]
[1766615342154,0.01085,87820.0,87813.0,0.13144783]
[1766615345122,0.01085,87820.0,87814.0,0.0113877]
[1766615346110,0.01085,87820.0,87813.0,0.13144783]
[1766615346458,0.01085,87820.0,87813.0,0.12006]
[1766615347104,0.01085,87820.0,87813.0,0.119511]
[1766615348125,0.02223692,87820.0,87813.0,0.119511]
[1766615348368,0.01085,87820.0,87813.0,0.119511]
[1766615349532,0.01085,87820.0,87810.0,0.01149822]
[1766615350586,0.02223692,87820.0,87810.0,0.00011]
[1766615350742,0.01085,87820.0,87810.0,0.01149822]
[1766615352761,0.02223692,87820.0,87810.0,0.00011]
[1766615354168,0.02223692,87820.0,87810.0,0.01149822]
[1766615354700,0.01085,87820.0,87811.0,0.01138809]
[1766615354888,0.01085,87820.0,87810.0,0.01149822]
[1766615355030,0.01085,87820.0,87811.0,0.01138809]
[1766615355234,0.01085,87820.0,87810.0,0.01149822]
[1766615356687,0.01085,87820.0,87810.0,0.13155822]
[1766615357677,0.01085,87820.0,87811.0,0.01138809]
[1766615357875,0.01085,87820.0,87811.0,0.12006]
[1766615358074,0.01085,87820.0,87811.0,0.13144809]
[1766615358272,0.01085,87820.0,87811.0,0.12006]
[1766615359266,0.02223692,87820.0,87811.0,0.12006]
[1766615359473,0.01085,87820.0,87811.0,0.12006]
[1766615361416,0.02223692,87820.0,87811.0,0.12006]
[1766615363477,0.01085,87820.0,87811.0,0.12006]
[1766615366629,0.02223692,87820.0,87811.0,0.12006]
[1766615370714,0.01085,87820.0,87811.0,0.12006]
[1766615380730,0.02223692,87820.0,87811.0,0.12006]
[1766615380933,0.01085,87820.0,87811.0,0.12006]
[1766615385969,0.02223692,87820.0,87811.0,0.12006]
[1766615386618,0.01085,87820.0,87811.0,0.12006]
[1766615387131,0.02223692,87820.0,87811.0,0.12006]
[1766615388169,0.01138705,87819.0,87811.0,0.12006]
[1766615388390,0.01138718,87818.0,87811.0,0.11951]
[1766615388592,0.01138705,87819.0,87811.0,0.11951]
[1766615388934,0.02223692,87820.0,87811.0,0.11951]
[1766615389701,0.01138705,87819.0,87811.0,0.11951]
[1766615390129,0.01085,87820.0,87811.0,0.11951]
[1766615390302,0.02223692,87820.0,87811.0,0.11951]
[1766615392469,0.01085,87820.0,87811.0,0.13089809]
[1766615393386,0.01085,87820.0,87811.0,0.11951]
[1766615393730,0.01085,87820.0,87811.0,0.13089809]
[1766615399356,0.01085,87820.0,87812.0,0.01138796]
[1766615399983,0.01085,87820.0,87811.0,0.13089809]
[1766615400190,0.01085,87820.0,87812.0,0.01138796]
[1766615400336,0.01085,87820.0,87811.0,0.13089809]
[1766615401433,0.01085,87820.0,87812.0,0.01138796]
[1766615401961,0.01085,87820.0,87811.0,0.13089809]
[1766615402672,0.01085,87820.0,87811.0,0.11951]
[1766615402878,0.02223692,87820.0,87811.0,0.11951]
[1766615403076,0.01085,87820.0,87810.0,0.00011]
[1766615403378,0.010301,87820.0,87810.0,0.01149822]
[1766615403596,0.010301,87820.0,87811.0,0.01138809]
[1766615403795,0.010301,87820.0,87812.0,0.01138796]
[1766615404576,0.010301,87820.0,87813.0,0.01138783]
[1766615404782,0.03077648,87836.0,87829.0,0.12409]
[1766615405006,0.06830893,87837.0,87829.0,0.12409]
[1766615405325,0.01138485,87836.0,87829.0,0.123541]
[1766615405477,0.01138485,87836.0,87825.0,0.01138627]
[1766615405826,0.0114,87837.0,87825.0,0.01138627]
[1766615406027,0.0114,87837.0,87826.0,0.01138614]
[1766615406028,0.02278472,87837.0,87826.0,0.01138614]
[1766615406407,0.0114,87837.0,87826.0,0.01138614]
[1766615406729,0.0114,87837.0,87827.0,0.01138602]
[1766615407744,0.0114,87837.0,87828.0,0.01138589]
[1766615407920,0.0114,87837.0,87827.0,0.01138602]
[1766615409847,0.0114,87837.0,87828.0,0.01138589]
[1766615410570,0.01138614,87826.0,87821.0,0.0114]
[1766615410766,0.59050492,87840.0,87810.0,0.00011]
[1766615410767,0.01138679,87821.0,87812.0,0.03418645]
[1766615410939,0.0114,87822.0,87812.0,0.03418645]
[1766615411144,0.31803912,87822.0,87811.0,0.01138809]
[1766615411723,0.31803912,87822.0,87809.0,0.06834144]
[1766615411724,0.01138679,87821.0,87809.0,0.01138979]
[1766615411931,0.01138705,87819.0,87806.0,0.19249762]
[1766615412126,0.01138718,87818.0,87807.0,0.01138861]
[1766615412333,0.01138718,87818.0,87806.0,1.8e-06]
[1766615412334,0.01138796,87812.0,87806.0,1.8e-06]
[1766615412540,0.01138783,87813.0,87806.0,1.8e-06]
[1766615412945,0.01138848,87808.0,87797.0,0.0114]
[1766615413283,0.29525246,87816.0,87789.0,0.02278939]
[1766615413284,0.01138978,87798.0,87789.0,0.02278939]
[1766615413435,0.0114,87797.0,87788.0,0.13548107]
[1766615413637,0.0114,87797.0,87788.0,0.12409]
[1766615413939,0.0114,87797.0,87771.0,0.0004]
[1766615413940,0.01139237,87778.0,87771.0,0.0004]
[1766615414146,0.29525246,87800.0,87778.0,0.13603137]
[1766615414147,0.01139055,87792.0,87778.0,0.13603137]
[1766615414359,0.01139055,87792.0,87775.0,0.01139276]
[1766615414360,0.0114,87791.0,87780.0,0.12409]
[1766615414541,0.29525246,87790.0,87780.0,0.12409]
[1766615415105,0.29525246,87790.0,87780.0,0.13548211]
[1766615415250,0.03418123,87791.0,87779.0,0.01139224]
[1766615415251,0.01139055,87791.0,87790.0,0.000549]
[1766615415662,0.0114,87800.0,87794.0,0.0113903]
[1766615415839,0.0114,87800.0,87793.0,0.12409]
[1766615415987,0.0114,87800.0,87794.0,0.0113903]
[1766615416592,0.03419612,87802.0,87796.0,0.01139004]
[1766615416793,0.01138757,87815.0,87800.0,0.000549]
[1766615416996,0.00011,87812.0,87806.0,0.13547874]
[1766615417195,0.00011,87812.0,87807.0,0.13547861]
[1766615417419,0.00011,87812.0,87808.0,0.12409]
[1766615419916,0.01138485,87836.0,87818.0,0.01138718]
[1766615420087,1.13820234,87867.0,87825.0,0.12409]
[1766615420088,0.01138472,87837.0,87825.0,0.12409]
[1766615420288,0.0114,87836.0,87826.0,0.01138614]
[1766615420595,0.01138498,87835.0,87825.0,0.12409]
[1766615420844,0.02278485,87836.0,87825.0,0.13547627]
[1766615421024,0.01138498,87835.0,87825.0,0.13549]
[1766615421422,0.0114,87836.0,87826.0,0.01138614]
[1766615421828,0.0113842,87841.0,87828.0,0.12409]
[1766615422071,0.0114,87840.0,87828.0,0.12409]
[1766615422242,0.07970654,87840.0,87828.0,0.12409]
[1766615422444,0.01138472,87837.0,87828.0,0.12409]
[1766615423435,0.01138459,87838.0,87828.0,0.12409]
[1766615423624,0.01138446,87839.0,87828.0,0.13547589]
[1766615423825,0.01138459,87838.0,87828.0,0.12409]
[1766615424937,0.02278433,87840.0,87829.0,0.01138576]
[1766615425145,0.01138368,87845.0,87840.0,0.000549]
[1766615425382,0.0114,87841.0,87840.0,0.000549]
[1766615425787,0.0114,87841.0,87837.0,0.12409]
[1766615427932,0.01138342,87847.0,87837.0,0.12409]
[1766615428089,0.0114,87846.0,87837.0,0.12409]
[1766615428300,0.0114,87846.0,87838.0,0.01138459]
[1766615428700,0.0114,87845.0,87837.0,0.12409]
[1766615429491,0.0114,87844.0,87838.0,0.01138459]
[1766615429687,0.0114,87843.0,87838.0,0.01138459]
[1766615430138,0.0114,87843.0,87837.0,0.13547472]
[1766615430292,0.0114,87843.0,87838.0,0.01138459]
[1766615430646,0.19596283,87874.0,87843.0,0.117159]
[1766615430647,0.02278265,87853.0,87843.0,0.117159]
[1766615430877,0.0114,87853.0,87843.0,0.11661]
[1766615431171,0.0114,87853.0,87843.0,0.12799394]
[1766615433097,0.0114,87853.0,87843.0,0.1283474]
[1766615433308,0.02278265,87853.0,87843.0,0.11696346]
[1766615433727,0.01138278,87852.0,87843.0,0.11696346]
[1766615433881,0.02278265,87853.0,87843.0,0.11696346]
[1766615435522,0.0113829,87851.0,87843.0,0.11696346]
[1766615435845,0.01138537,87832.0,87826.0,0.11661]
[1766615436048,0.01138537,87832.0,87826.0,0.12801]
[1766615436049,0.0003533,87832.0,87826.0,0.12801]
[1766615438485,0.01173867,87832.0,87820.0,0.12384]
[1766615438698,0.01173867,87832.0,87820.0,0.14662692]
[1766615438878,0.01173867,87832.0,87821.0,0.01138679]
[1766615440678,0.0113855,87831.0,87820.0,0.14662692]
[1766615441286,0.0114,87846.0,87839.0,0.12384]
[1766615441516,0.01150595,87846.0,87839.0,0.12384]
[1766615441719,0.01150595,87846.0,87839.0,0.13522446]
[1766615442309,0.01150595,87846.0,87839.0,0.12384]
[1766615442509,0.01150595,87846.0,87839.0,0.13522446]
[1766615443394,0.01095695,87846.0,87839.0,0.13522446]
[1766615447620,0.01095695,87846.0,87823.0,0.01138653]
[1766615447621,0.01138485,87836.0,87823.0,0.01138653]
[1766615447826,0.01193346,87839.0,87823.0,0.01138653]
[1766615447827,0.0114,87835.0,87827.0,0.12384]
[1766615447979,0.05692096,87842.0,87837.0,0.12384]
[1766615448178,0.22767112,87847.0,87837.0,0.12384]
[1766615448179,0.02278342,87847.0,87837.0,0.12384]
[1766615448695,0.01138368,87845.0,87837.0,0.12384]
[1766615449081,0.01138381,87844.0,87837.0,0.12384]
[1766615449948,0.01138368,87845.0,87837.0,0.12384]
[1766615450188,0.00126357,87847.0,87840.0,0.01138433]
[1766615450393,0.00126357,87847.0,87840.0,0.13522433]
[1766615450610,0.05691256,87855.0,87840.0,0.13522433]
[1766615450611,0.22760562,87872.0,87847.0,0.00055]
[1766615450757,0.01138109,87865.0,87856.0,0.12265518]
[1766615450941,0.01138096,87866.0,87856.0,0.12265518]
[1766615451148,0.12986,87864.0,87854.0,0.02275429]
[1766615451354,0.14124122,87864.0,87854.0,0.02275429]
[1766615451556,0.01138135,87863.0,87854.0,0.02275429]
[1766615451753,0.14124122,87864.0,87854.0,0.02275429]
[1766615452406,0.14124122,87864.0,87854.0,0.02156971]
[1766615454742,0.0114,87864.0,87854.0,0.02156971]
[1766615454903,0.0114,87864.0,87854.0,0.03295223]
[1766615455086,0.0114,87864.0,87854.0,0.02156971]
[1766615455087,0.02278122,87864.0,87854.0,0.02156971]
[1766615455481,0.01138005,87873.0,87859.0,0.01138187]
[1766615455680,0.11846,87872.0,87861.0,0.01138161]
[1766615455896,0.11846,87872.0,87862.0,0.01138148]
[1766615456268,0.12984018,87872.0,87861.0,0.01138161]
[1766615456599,0.11846,87872.0,87861.0,0.01138161]
[1766615457419,0.11846,87872.0,87862.0,0.01138148]
[1766615457584,0.11846,87872.0,87864.0,0.01138122]
[1766615458258,0.0114,87875.0,87864.0,0.01138122]
[1766615458917,0.11961,87874.0,87864.0,0.01138122]
[1766615459236,0.11961,87874.0,87863.0,0.01138135]
[1766615459736,0.11961,87874.0,87864.0,0.01138122]
[1766615460303,0.13098993,87874.0,87862.0,0.06828841]
[1766615460499,0.0114,87873.0,87866.0,0.01138096]
[1766615460815,0.01157928,87879.0,87866.0,0.01138096]
[1766615460816,0.01085,87872.0,87866.0,0.01138096]
[1766615461189,0.0114,87871.0,87865.0,0.01138109]
[1766615461910,0.0114,87870.0,87863.0,0.06828761]
[1766615462127,0.0114,87870.0,87864.0,0.01138122]
[1766615462826,0.0114,87870.0,87865.0,0.01138109]
[1766615463027,0.0114,87870.0,87867.0,0.01138083]
[1766615463245,0.0114,87870.0,87866.0,0.01138096]
[1766615463904,0.0114,87870.0,87865.0,0.01138109]
[1766615464104,0.0114,87870.0,87866.0,0.01138096]
[1766615465153,0.0114,87870.0,87866.0,0.00990046]
[1766615465398,0.0114,87870.0,87866.0,6.00990046]
[1766615467549,0.01157928,87879.0,87868.0,0.02275429]
[1766615467550,0.0002,87879.0,87868.0,0.02275429]
[1766615467687,0.0002,87886.0,87883.0,0.01137876]
[1766615467885,0.01137708,87896.0,87884.0,0.01137863]
[1766615468064,0.01137708,87896.0,87883.0,0.06827218]
[1766615468270,0.0114,87891.0,87884.0,0.01137863]
[1766615468685,0.0114,87891.0,87883.0,0.01137876]
[1766615468686,0.0116,87892.0,87883.0,0.01137876]
[1766615469045,0.0116,87892.0,87884.0,0.01137863]
[1766615469202,0.0114,87891.0,87884.0,0.01137863]
[1766615469528,0.0114,87891.0,87885.0,0.0113785]
[1766615469995,0.0114,87891.0,87886.0,0.01137837]
[1766615470191,0.0114,87891.0,87885.0,0.0113785]
[1766615470423,0.01150601,87891.0,87884.0,0.01137863]
[1766615470796,0.01150601,87891.0,87885.0,0.0113785]
[1766615470993,0.0114,87893.0,87885.0,0.0113785]
[1766615471685,0.11961,87897.0,87886.0,0.02277837]
[1766615472134,0.11961,87897.0,87887.0,0.02275429]
[1766615472300,0.13098695,87897.0,87887.0,0.02275429]
[1766615472501,0.11961,87897.0,87887.0,0.02275429]
[1766615472684,0.13098695,87897.0,87887.0,0.02275429]
[1766615472883,0.11961,87897.0,87887.0,0.02275429]
[1766615474196,0.13098695,87897.0,87887.0,0.02248388]
[1766615474437,0.13098695,87897.0,87883.0,0.01137876]
[1766615474438,0.01137785,87890.0,87877.0,0.01137954]
[1766615474611,0.0114,87897.0,87879.0,0.0114]
[1766615474612,0.11961,87886.0,87879.0,0.0114]
[1766615475398,0.11961,87886.0,87880.0,0.01137915]
[1766615475597,0.11961,87886.0,87882.0,0.01137889]
[1766615475824,0.11961,87886.0,87881.0,0.01137902]
[1766615476034,0.11961,87886.0,87882.0,0.01137889]
[1766615476961,0.11961,87886.0,87883.0,0.01137876]
[1766615477365,0.11961,87886.0,87881.0,0.01137902]
[1766615477665,0.0114,87891.0,87882.0,0.01137889]
[1766615478010,0.01137682,87898.0,87885.0,0.0113785]
[1766615478204,0.0114,87897.0,87886.0,0.01137837]
[1766615478410,0.02277695,87897.0,87885.0,0.0113785]
[1766615478633,0.01137708,87896.0,87884.0,0.01137863]
[1766615478831,0.01137708,87896.0,87885.0,0.0113785]
[1766615479034,0.14238695,87897.0,87885.0,0.0113785]
[1766615479247,0.01137708,87896.0,87885.0,0.0113785]
[1766615479663,0.13098708,87896.0,87885.0,0.0113785]
[1766615480009,0.13098708,87896.0,87885.0,0.0096023]
[1766615481010,0.11961,87896.0,87885.0,0.0096023]
[1766615481181,0.13098708,87896.0,87885.0,0.0096023]
[1766615481381,0.11961,87896.0,87886.0,0.01137837]
[1766615481553,0.11961,87896.0,87885.0,0.0096023]
[1766615482157,0.11961,87896.0,87886.0,0.01137837]
[1766615482345,0.11961,87896.0,87885.0,0.0096023]
[1766615482542,0.11645112,87896.0,87886.0,0.01137837]
[1766615483246,0.11645112,87896.0,87885.0,0.0096023]
[1766615483443,0.11645112,87896.0,87886.0,0.01137837]
[1766615483862,0.11645112,87896.0,87885.0,0.06649437]
[1766615484066,0.11645112,87896.0,87886.0,0.01137837]
[1766615486276,0.11645112,87896.0,87885.0,0.07789437]
[1766615486678,0.11645112,87896.0,87886.0,0.01137837]
[1766615488119,0.11645112,87896.0,87887.0,0.01137824]
[1766615489581,0.11645112,87896.0,87886.0,0.01137837]
[1766615489782,0.11645112,87896.0,87887.0,0.01137824]
[1766615490186,0.11645112,87896.0,87886.0,0.01137837]
[1766615490390,0.11645112,87896.0,87887.0,0.01137824]
[1766615490608,0.11645112,87896.0,87886.0,0.01137837]
[1766615490807,0.11645112,87896.0,87887.0,0.01137824]
[1766615491843,0.11645112,87896.0,87886.0,0.01137837]
[1766615492022,0.11645112,87896.0,87885.0,0.0210023]
[1766615492216,0.11645112,87896.0,87886.0,0.01137837]